[Event "Chessity Nationale Pupillendag 2019 - Groep F"]
[Site "Meppel, Netherlands"]
[Date "2019.06.29"]
[Round "7.6"]
[White "Gelten, Evan"]
[Black "Heukelom, Aurelia"]
[Result "1-0"]
[TimeControl "15 min + 10 sec"]
[WhiteElo "710"]
[BlackElo "643"]

1. e4 {[%clk 00:15:18]} e5 {[%clk 00:15:19]} {[%emt 00:00:02]} 2. Nf3 {[%clk
00:15:25]} {[%emt 00:00:03]} Nc6 {[%clk 00:15:22]} {[%emt 00:00:07]} 3. Bc4
{[%clk 00:15:33]} {[%emt 00:00:02]} Nf6 {[%clk 00:15:28]} {[%emt 00:00:04]} 4.
Nc3 {[%clk 00:15:40]} {[%emt 00:00:03]} Bb4 {[%clk 00:15:36]} {[%emt 00:00:03]}
5. d3 {[%clk 00:15:45]} {[%emt 00:00:05]} Bxc3+ {[%clk 00:15:44]} {[%emt
00:00:01]} 6. bxc3 {[%clk 00:15:54]} {[%emt 00:00:02]} O-O {[%clk 00:15:51]}
{[%emt 00:00:03]} 7. Bg5 {[%clk 00:15:58]} {[%emt 00:00:05]} d6 {[%clk
00:15:59]} {[%emt 00:00:03]} 8. h3 {[%clk 00:16:01]} Bd7 {[%clk 00:15:51]}
{[%emt 00:00:25]} 9. O-O {[%clk 00:15:58]} h6 {[%clk 00:15:53]} {[%emt
00:00:21]} 10. Bh4 {[%clk 00:16:05]} {[%emt 00:00:04]} a6 {[%clk 00:15:50]}
{[%emt 00:00:12]} 11. Qd2 {[%clk 00:16:01]} {[%emt 00:00:14]} b5 {[%clk
00:15:44]} {[%emt 00:00:17]} 12. Bd5 {[%clk 00:16:08]} {[%emt 00:00:03]} Rb8
{[%clk 00:15:26]} {[%emt 00:00:27]} 13. d4 {[%clk 00:16:00]} {[%emt 00:00:19]}
Be6 {[%clk 00:14:43]} {[%emt 00:00:53]} 14. Bxc6 {[%clk 00:16:06]} {[%emt
00:00:04]} d5 {[%clk 00:14:33]} {[%emt 00:00:20]} 15. Bxd5 {[%emt 00:00:28]}
Bxd5 {[%clk 00:14:37]} {[%emt 00:00:04]} 16. exd5 {[%emt 00:00:58]} Ne4 {[%clk
00:13:49]} {[%emt 00:00:03]} 17. Qe3 {[%emt 00:00:34]} Qxd5 {[%clk 00:13:27]}
{[%emt 00:00:05]} 18. dxe5 {[%emt 00:01:28]} Nc5 {[%emt 00:00:28]} 19. Rfd1
{[%emt 00:00:25]} Qc6 {[%clk 00:11:42]} {[%emt 00:00:11]} 20. Qf4 {[%clk
00:15:00]} {[%emt 00:01:01]} Ne6 {[%clk 00:11:23]} {[%emt 00:00:32]} 21. Qe3
{[%clk 00:14:39]} {[%emt 00:00:29]} b4 {[%clk 00:10:35]} {[%emt 00:00:59]} 22.
cxb4 {[%clk 00:14:35]} Rxb4 {[%clk 00:10:42]} {[%emt 00:00:17]} 23. Qd3 {[%clk
00:14:33]} Ng5 {[%clk 00:10:29]} {[%emt 00:00:34]} 24. Bxg5 {[%clk 00:14:37]}
hxg5 {[%clk 00:10:37]} {[%emt 00:00:09]} 25. Nxg5 {[%clk 00:14:41]} g6 {[%clk
00:10:39]} {[%emt 00:00:14]} 26. Qd5 {[%clk 00:14:32]} Qxd5 {[%clk 00:10:41]}
{[%emt 00:00:26]} 27. Rxd5 {[%clk 00:14:39]} Rb2 {[%clk 00:10:33]} {[%emt
00:00:20]} 28. Rc5 {[%clk 00:14:45]} Rb5 {[%clk 00:10:31]} {[%emt 00:00:17]} 29.
Rxb5 {[%clk 00:14:49]} axb5 {[%clk 00:10:39]} {[%emt 00:00:07]} 30. Rb1 {[%clk
00:14:57]} c6 {[%clk 00:10:48]} {[%emt 00:00:04]} 31. Rd1 {[%clk 00:15:01]} b4
{[%clk 00:10:50]} {[%emt 00:00:14]} 32. Rd7 {[%clk 00:15:08]} Rc8 {[%clk
00:10:12]} {[%emt 00:00:51]} 33. Rxf7 {[%clk 00:15:05]} c5 {[%clk 00:10:19]}
{[%emt 00:00:16]} 34. e6 {[%clk 00:15:11]} c4 {[%clk 00:10:09]} {[%emt
00:00:25]} 35. e7 {[%clk 00:15:17]} {[%emt 00:00:04]} b3 {[%clk 00:10:18]} 36.
axb3 {[%clk 00:15:19]} {[%emt 00:00:09]} cxb3 {[%clk 00:10:25]} {[%emt
00:00:03]} 37. cxb3 {[%clk 00:15:26]} {[%emt 00:00:02]} Rc1+ {[%clk 00:10:23]}
{[%emt 00:00:11]} 38. Kh2 {[%clk 00:15:35]} {[%emt 00:00:03]} Rc8 {[%clk
00:10:23]} {[%emt 00:00:04]} 39. Rf8+ {[%clk 00:15:43]} {[%emt 00:00:07]} Rxf8
{[%clk 00:10:30]} {[%emt 00:00:04]} 40. exf8=Q+ Kxf8 {[%clk 00:10:39]} 41. Kg3
{[%clk 00:16:00]} {[%emt 00:00:02]} Ke7 {[%clk 00:10:57]} {[%emt 00:00:03]} 42.
Kf4 {[%clk 00:16:17]} {[%emt 00:00:01]} Kf6 {[%clk 00:11:06]} {[%emt 00:00:01]}
43. b4 {[%clk 00:16:25]} Ke7 {[%clk 00:11:13]} {[%emt 00:00:05]} 44. b5 {[%clk
00:16:34]} Kd7 {[%clk 00:11:22]} {[%emt 00:00:02]} 45. b6 {[%clk 00:16:43]} Kc8
{[%clk 00:11:31]} {[%emt 00:00:01]} 46. Ke5 {[%clk 00:16:43]} Kb7 {[%clk
00:11:40]} {[%emt 00:00:04]} 47. Kf6 {[%clk 00:16:59]} Kxb6 {[%clk 00:11:50]}
{[%emt 00:00:02]} 48. h4 {[%clk 00:17:08]} Kc7 {[%clk 00:11:56]} {[%emt
00:00:04]} 49. Kxg6 {[%clk 00:17:16]} {[%emt 00:00:02]} Kd7 {[%clk 00:12:05]}
{[%emt 00:00:02]} 50. h5 {[%clk 00:17:25]} {[%emt 00:00:01]} Ke7 {[%clk
00:12:14]} 51. Kg7 {[%clk 00:17:34]} {[%emt 00:00:01]} Kd6 {[%clk 00:12:18]}
{[%emt 00:00:06]} 52. h6 {[%clk 00:17:43]} {[%emt 00:00:01]} Ke5 {[%clk
00:12:17]} {[%emt 00:00:11]} 53. h7 {[%clk 00:17:51]} {[%emt 00:00:01]} Kf4
{[%clk 00:12:26]} {[%emt 00:00:01]} 54. h8=Q {[%clk 00:17:59]} {[%emt
00:00:03]} Kg4 {[%clk 00:12:34]} {[%emt 00:00:02]} 55. Qh3+ {[%clk 00:18:02]}
{[%emt 00:00:05]} Kxg5 {[%clk 00:12:39]} {[%emt 00:00:07]} 56. Qg3+ {[%clk
00:18:09]} {[%emt 00:00:02]} Kh5 {[%clk 00:12:45]} {[%emt 00:00:04]} 57. Kf6
{[%emt 00:00:11]} Kh6 {[%clk 00:12:47]} {[%emt 00:00:03]} 58. Qg6 {[%clk
00:18:21]} {[%emt 00:00:02]} 1-0